bitfinex/quotes_SOLUSD_20240824
["timestamp","ask_amount","ask_price","bid_price","bid_amount"]
[1724530433282,51.2108,161.01,160.91,1.24249803]
[1724530433467,51.2108,161.01,160.92,1.55530837]
[1724530433659,51.2108,161.01,160.93,1.55530837]
[1724530433978,51.2108,161.01,160.94,1.55530837]
[1724530434163,51.2108,161.01,160.91,1.24249803]
[1724530434365,51.2108,161.01,160.92,1.55531729]
[1724530434680,51.2108,161.01,160.93,1.55531729]
[1724530434853,51.2108,161.01,160.94,1.55531729]
[1724530435056,51.2108,161.01,160.95,1.55531729]
[1724530435254,51.2108,161.01,160.91,1.24249803]
[1724530435457,51.2108,161.01,160.92,1.55529926]
[1724530435678,51.2108,161.01,160.93,1.55529926]
[1724530435879,51.2108,161.01,160.94,1.55529926]
[1724530436077,51.2108,161.01,160.95,1.55529926]
[1724530436277,6.2112,161.0,160.9,1.24250214]
[1724530436598,6.2112,161.0,160.91,1.5553178]
[1724530436774,6.2112,161.0,160.92,1.5553178]
[1724530436963,6.2112,161.0,160.93,1.5553178]
[1724530437166,6.2112,161.0,160.94,1.5553178]
[1724530437399,6.2112,161.0,160.91,11.86395594]
[1724530437695,6.2112,161.0,160.92,1.55531579]
[1724530437994,6.2112,161.0,160.93,1.55531579]
[1724530438196,6.2112,161.0,160.94,1.55531579]
[1724530438493,6.2112,161.0,160.95,1.55531579]
[1724530438796,6.2112,161.0,160.91,11.86395594]
[1724530438972,6.2112,161.0,160.92,1.55532628]
[1724530439175,6.2112,161.0,160.93,1.55532628]
[1724530439369,45.0,161.01,160.94,1.55532594]
[1724530439576,45.0,161.01,160.95,1.55532594]
[1724530439806,45.0,161.01,160.91,11.86395594]
[1724530440095,45.0,161.01,160.92,1.55531758]
[1724530440303,11.86395594,161.0,160.93,1.55531758]
[1724530440599,11.86395594,161.0,160.94,1.55531758]
[1724530440785,18.07545594,161.0,160.9,11.86395594]
[1724530440985,18.07545594,161.0,160.91,1.55547286]
[1724530441186,18.07545594,161.0,160.92,1.55547286]
[1724530441388,18.07545594,161.0,160.93,1.55547286]
[1724530441586,18.07545594,161.0,160.94,1.55547286]
[1724530441784,18.07545594,161.0,160.95,1.55547286]
[1724530442086,18.07545594,161.0,160.9,11.86395594]
[1724530442287,18.07545594,161.0,160.91,1.55533512]
[1724530442583,18.07545594,161.0,160.92,1.55533512]
[1724530442777,18.07545594,161.0,160.93,1.55533512]
[1724530442979,18.07545594,161.0,160.94,1.55533512]
[1724530443189,18.07545594,161.0,160.95,1.55533512]
[1724530443390,18.07545594,161.0,160.9,11.86395594]
[1724530443589,18.07545594,161.0,160.91,1.55532647]
[1724530443871,18.07545594,161.0,160.92,1.55532647]
[1724530444105,18.07545594,161.0,160.93,1.55532647]
[1724530444283,18.07545594,161.0,160.94,1.55532647]
[1724530444486,18.07545594,161.0,160.95,1.55532647]
[1724530444696,18.07545594,161.0,160.9,11.86395594]
[1724530445086,18.07545594,161.0,160.96,1.5552654]
[1724530447013,18.07545594,161.0,160.9,11.86395594]
[1724530447303,18.07545594,161.0,160.91,1.55525763]
[1724530447507,18.07545594,161.0,160.92,1.55525763]
[1724530447692,18.07545594,161.0,160.93,1.55525763]
[1724530447891,18.07545594,161.0,160.94,1.55525763]
[1724530448210,18.07545594,161.0,160.95,1.55525763]
[1724530448412,18.07545594,161.0,160.96,1.55525763]
[1724530448583,18.07545594,161.0,160.9,11.86395594]
[1724530448784,18.07545594,161.0,160.91,1.55527363]
[1724530448983,18.07545594,161.0,160.92,1.55527363]
[1724530449193,18.07545594,161.0,160.93,1.55527363]
[1724530449398,18.07545594,161.0,160.94,1.55527363]
[1724530449591,18.07545594,161.0,160.95,1.55527363]
[1724530449797,18.07545594,161.0,160.96,1.55527363]
[1724530449998,18.07545594,161.0,160.97,1.55527363]
[1724530450186,18.07545594,161.0,160.9,11.86395594]
[1724530450384,18.07545594,161.0,160.91,1.55525226]
[1724530450585,18.07545594,161.0,160.92,1.55525226]
[1724530450809,6.2115,161.0,160.93,1.55525226]
[1724530450985,6.2115,161.0,160.94,1.55525226]
[1724530451185,6.2115,161.0,160.95,1.55525226]
[1724530451395,6.2115,161.0,160.96,1.55525226]
[1724530451595,6.2115,161.0,160.97,1.55525226]
[1724530451795,6.2115,161.0,160.9,11.86395594]
[1724530452320,6.2115,161.0,160.91,1.55525755]
[1724530452608,6.2115,161.0,160.92,1.55525755]
[1724530452810,6.2115,161.0,160.93,1.55525755]
[1724530453015,6.2115,161.0,160.94,6.21963109]
[1724530453204,6.2115,161.0,160.95,6.21963109]
[1724530453404,6.2115,161.0,160.96,1.55525755]
[1724530453616,6.2115,161.0,160.97,1.55525755]
[1724530453816,6.2115,161.0,160.9,11.86395594]
[1724530454119,6.2115,161.0,160.91,4.66437464]
[1724530454428,6.2115,161.0,160.92,4.66437464]
[1724530454590,6.2115,161.0,160.93,4.66437464]
[1724530454788,6.2115,161.0,160.94,4.66437464]
[1724530454992,6.2115,161.0,160.95,4.66437464]
[1724530455291,6.2115,161.0,160.9,11.86395594]
[1724530455488,6.2115,161.0,160.91,4.66437464]
[1724530455698,6.2115,161.0,160.92,4.66437464]
[1724530455900,6.2115,161.0,160.93,4.66437464]
[1724530456102,6.2115,161.0,160.94,4.66437464]
[1724530456317,6.2115,161.0,160.95,4.66437464]
[1724530456516,6.2115,161.0,160.9,11.86395594]
[1724530456724,6.2115,161.0,160.91,4.66437238]
[1724530456893,6.2115,161.0,160.92,4.66437238]
[1724530457224,6.2115,161.0,160.93,4.66437238]
[1724530457399,6.2115,161.0,160.9,11.86395594]
[1724530457400,6.2115,161.0,160.94,4.66437238]
[1724530457598,6.2115,161.0,160.95,4.66437238]
[1724530457793,6.2115,161.0,160.9,11.86395594]
[1724530457993,6.2115,161.0,160.91,4.66439776]
[1724530458196,6.2115,161.0,160.92,4.66439776]
[1724530458402,6.2115,161.0,160.93,4.66439776]
[1724530458599,6.2115,161.0,160.94,4.66439776]
[1724530458797,6.2115,161.0,160.95,4.66439776]
[1724530459002,6.2115,161.0,160.9,11.86395594]
[1724530459228,6.2115,161.0,160.91,4.66437089]
[1724530459427,6.2115,161.0,160.92,4.66437089]
[1724530459611,6.2115,161.0,160.93,4.66437089]
[1724530459816,6.2115,161.0,160.94,4.66437089]
[1724530460136,6.2115,161.0,160.95,4.66437089]
[1724530460335,6.2115,161.0,160.9,11.86395594]
[1724530460512,6.2115,161.0,160.91,4.66434866]
[1724530460711,6.2115,161.0,160.92,4.66434866]
[1724530460922,6.2115,161.0,160.9,11.86395594]
[1724530460923,6.2115,161.0,160.93,4.66434866]
[1724530461104,6.2115,161.0,160.94,4.66434866]
[1724530461304,6.2115,161.0,160.95,4.66434866]
[1724530461504,6.2115,161.0,160.9,11.86395594]
[1724530461723,6.2115,161.0,160.91,4.66439521]
[1724530461947,6.2115,161.0,160.9,11.86395594]
[1724530462127,6.2115,161.0,160.91,4.66439771]
[1724530462333,6.2115,161.0,160.9,11.86395594]
[1724530462334,6.2115,161.0,160.92,4.66439771]
[1724530462516,6.2115,161.0,160.93,4.66439771]
[1724530462717,6.2115,161.0,160.94,4.66439771]
[1724530462906,6.2115,161.0,160.95,4.66439771]
[1724530463106,6.2115,161.0,160.9,11.86395594]
[1724530463336,6.2115,161.0,160.91,7.68954208]
[1724530463518,6.2115,161.0,160.92,7.68954208]
[1724530463719,6.2115,161.0,160.93,7.68954208]
[1724530463907,6.2115,161.0,160.94,7.68954208]
[1724530464233,6.2115,161.0,160.95,7.68954208]
[1724530464437,6.2115,161.0,160.96,3.02516744]
[1724530464612,6.2115,161.0,160.9,11.86395594]
[1724530464812,6.2115,161.0,160.91,7.68954442]
[1724530465013,6.2115,161.0,160.92,7.68954442]
[1724530465331,6.2115,161.0,160.93,7.68954442]
[1724530465631,6.2115,161.0,160.94,7.68954442]
[1724530465808,6.2115,161.0,160.95,7.68954442]
[1724530466008,6.2115,161.0,160.96,3.02516978]
[1724530466226,6.2115,161.0,160.9,11.86395594]
[1724530466433,6.2115,161.0,160.91,7.68953895]
[1724530466740,6.2115,161.0,160.92,7.68953895]
[1724530466922,6.2115,161.0,160.9,11.86395594]
[1724530466923,6.2115,161.0,160.93,7.68953895]
[1724530467118,6.2115,161.0,160.94,7.68953895]
[1724530467323,6.2115,161.0,160.95,7.68953895]
[1724530467521,6.2115,161.0,160.96,3.02516722]
[1724530467833,6.2115,161.0,160.9,11.86395594]
[1724530468037,6.2115,161.0,160.91,7.6894944]
[1724530468246,6.2115,161.0,160.92,7.6894944]
[1724530468547,6.2115,161.0,160.93,7.6894944]
[1724530469020,6.2115,161.0,160.94,7.68954075]
[1724530469225,6.2115,161.0,160.95,7.68954075]
[1724530469444,6.2115,161.0,160.96,3.02516806]
[1724530469731,6.2115,161.0,160.9,11.86395594]
[1724530469916,6.2115,161.0,160.91,7.68958746]
[1724530470122,6.2115,161.0,160.92,7.68958746]
[1724530470322,6.2115,161.0,160.93,7.68958746]
[1724530470530,6.2115,161.0,160.94,7.68958746]
[1724530470722,6.2115,161.0,160.95,7.68958746]
[1724530470923,6.2115,161.0,160.96,3.0251899]
[1724530471223,6.2115,161.0,160.9,11.86395594]
[1724530471408,6.2115,161.0,160.91,7.68952852]
[1724530471610,6.2115,161.0,160.92,7.68952852]
[1724530471843,6.2115,161.0,160.93,7.68952852]
[1724530472023,6.2115,161.0,160.94,4.66436626]
[1724530472333,6.2115,161.0,160.95,7.68952868]
[1724530472535,6.2115,161.0,160.96,4.66436626]
[1724530472740,6.2115,161.0,160.9,11.86395594]
[1724530472925,6.2115,161.0,160.91,8.93206827]
[1724530473123,6.2115,161.0,160.92,7.68949725]
[1724530473323,6.2115,161.0,160.93,7.68949725]
[1724530473542,6.2115,161.0,160.94,7.68949725]
[1724530473745,6.2115,161.0,160.95,7.68949725]
[1724530473945,6.2115,161.0,160.96,7.68949725]
[1724530474239,6.2115,161.0,160.91,1.24257102]
[1724530474414,6.2115,161.0,160.92,7.689496]
[1724530474622,6.6352,160.97,160.93,7.689496]
[1724530474844,6.6352,160.97,160.94,3.02514608]
[1724530475018,6.6352,160.97,160.88,6.02240961]
[1724530475218,6.6352,160.97,160.89,7.69052917]
[1724530475440,6.6352,160.97,160.9,7.69052917]
[1724530475614,6.6352,160.97,160.91,7.69052917]
[1724530475932,6.6352,160.97,160.92,3.02563018]
[1724530476138,6.6352,160.97,160.93,3.02563018]
[1724530476327,6.6352,160.97,160.88,12.47600587]
[1724530476536,6.6352,160.97,160.89,3.0257071]
[1724530476719,6.6352,160.97,160.9,3.0257071]
[1724530476919,6.6352,160.97,160.91,3.0257071]
[1724530477232,6.6352,160.97,160.92,3.0257071]
[1724530477415,6.6352,160.97,160.93,3.0257071]
[1724530477741,6.6352,160.97,160.88,6.45359626]
[1724530477943,6.6352,160.97,160.89,3.02570944]
[1724530478142,6.6352,160.97,160.9,3.02570944]
[1724530478345,6.6352,160.97,160.91,3.02570944]
[1724530478547,6.6352,160.97,160.92,3.02570944]
[1724530478719,6.6352,160.97,160.93,3.02570825]
[1724530478924,6.6352,160.97,160.88,6.45359626]
[1724530479552,6.6352,160.97,160.89,3.02570944]
[1724530479737,6.6352,160.97,160.88,18.3175522]
[1724530482157,6.6352,160.97,160.9,11.86395594]
[1724530489245,6.6352,160.97,160.88,18.3175522]
[1724530495464,6.6352,160.97,160.88,11.86395594]
[1724530496958,12.8475,160.97,160.87,6.44507374]
[1724530497158,12.8475,160.97,160.88,56.86395594]
[1724530497565,12.8475,160.97,160.88,45.0]
[1724530497856,12.8475,160.97,160.88,56.86395594]
[1724530498246,12.8475,160.97,160.88,45.0]
[1724530498461,12.8475,160.97,160.88,56.86395594]
[1724530504053,6.6352,160.97,160.88,56.86395594]
[1724530504460,12.8475,160.97,160.88,56.86395594]
[1724530504760,15.4314,160.99,160.92,11.86395594]
[1724530508748,15.4314,160.99,160.88,52.26476786]
[1724530508963,15.4314,160.99,160.92,11.86395594]
[1724530513066,15.4314,160.99,160.94,11.86395594]
[1724530513872,6.026,161.01,160.95,1.55513293]
[1724530514161,6.026,161.01,160.96,1.55513293]
[1724530514338,17.88995594,161.01,160.97,1.55513293]
[1724530514543,17.88995594,161.01,160.98,1.55513293]
[1724530514739,17.88995594,161.01,160.92,11.86395594]
[1724530514959,17.88995594,161.01,160.93,1.55515351]
[1724530515274,17.88995594,161.01,160.94,1.55515351]
[1724530515450,17.88995594,161.01,160.95,1.55515351]
[1724530515643,17.88995594,161.01,160.96,1.55515351]
[1724530515851,17.88995594,161.01,160.97,1.55515351]
[1724530516163,17.88995594,161.01,160.9,11.86395594]
[1724530516164,6.2119,160.98,160.9,11.86395594]
[1724530516376,11.86395594,160.99,160.91,2.79771378]
[1724530516673,11.86395594,160.99,160.92,1.55523037]
[1724530516847,11.86395594,160.99,160.93,1.55523037]
[1724530517049,11.86395594,160.99,160.94,1.55523037]
[1724530517251,11.86395594,160.99,160.95,1.55523037]
[1724530517448,11.86395594,160.99,160.91,1.24248341]
[1724530517861,11.86395594,160.99,160.92,1.55538667]
[1724530518074,11.86395594,160.99,160.93,1.55538667]
[1724530518276,11.86395594,160.99,160.94,1.55538634]
[1724530518478,11.86395594,160.99,160.95,1.55538634]
[1724530518642,11.86395594,160.99,160.91,1.24248341]
[1724530518842,11.86395594,160.99,160.92,1.55538667]
[1724530519070,11.86395594,160.99,160.93,1.55538667]
[1724530519275,11.86395594,160.99,160.94,1.55538667]
[1724530519571,11.86395594,160.99,160.95,1.55538667]
[1724530519769,11.86395594,160.99,160.91,1.24248341]
[1724530519949,11.86395594,160.99,160.92,1.5553774]
[1724530520149,11.86395594,160.99,160.93,2.7979233]
[1724530520351,11.86395594,160.99,160.94,1.5553774]
[1724530520550,11.86395594,160.99,160.95,1.5553774]
[1724530520751,11.86395594,160.99,160.91,1.2425459]
[1724530521363,11.86395594,160.99,160.92,1.55538667]
[1724530521668,11.86395594,160.99,160.93,2.79793325]
[1724530521866,11.86395594,160.99,160.94,1.55538667]
[1724530522165,11.86395594,160.99,160.95,1.55538667]
[1724530522365,11.86395594,160.99,160.91,1.24254693]
[1724530522677,11.86395594,160.99,160.92,1.55538667]
[1724530522971,22.0787,161.0,160.93,2.79793424]
[1724530522972,27.73155594,161.0,160.93,2.79793424]
[1724530523172,27.73155594,161.0,160.94,1.55538667]
[1724530523373,27.73155594,161.0,160.95,2.79783085]
[1724530523576,27.73155594,161.0,160.91,1.24244551]
[1724530523755,27.73155594,161.0,160.92,1.55536763]
[1724530523958,27.73155594,161.0,160.93,2.79781291]
[1724530524267,27.73155594,161.0,160.94,1.5553673]
[1724530524571,27.73155594,161.0,160.95,1.24244475]
[1724530524976,27.73155594,161.0,160.91,1.24245375]
[1724530525173,27.73155594,161.0,160.92,1.55535701]
[1724530525379,27.73155594,161.0,160.93,2.79781773]
[1724530525566,27.73155594,161.0,160.94,1.55535701]
[1724530525876,27.73155594,161.0,160.95,2.79781833]
[1724530526074,27.73155594,161.0,160.91,1.24246113]
[1724530526279,27.73155594,161.0,160.92,1.55536697]
[1724530526460,27.73155594,161.0,160.93,2.79782864]
[1724530526666,27.73155594,161.0,160.94,1.55536697]
[1724530526866,27.73155594,161.0,160.95,1.55536697]
[1724530527076,27.73155594,161.0,160.93,1.24246167]
[1724530527377,27.73155594,161.0,160.94,1.5553673]
[1724530527680,27.73155594,161.0,160.95,1.55537574]
[1724530527856,27.73155594,161.0,160.9,17.88636555]
[1724530528171,27.73155594,161.0,160.91,1.5553764]
[1724530528374,27.73155594,161.0,160.92,1.5553764]
[1724530528558,27.73155594,161.0,160.93,1.5553764]
[1724530528751,27.73155594,161.0,160.94,1.5553764]
[1724530528970,27.73155594,161.0,160.95,1.5553764]
[1724530529162,27.73155594,161.0,160.9,17.88636555]
[1724530529369,27.73155594,161.0,160.91,1.55536697]
[1724530529586,27.73155594,161.0,160.92,2.79783352]
[1724530529773,27.73155594,161.0,160.93,1.55536697]
[1724530530084,27.73155594,161.0,160.94,1.55536697]
[1724530530261,27.73155594,161.0,160.95,1.55536697]
[1724530530573,27.73155594,161.0,160.92,1.24246655]
[1724530530785,27.73155594,161.0,160.93,1.55536697]
[1724530530966,27.73155594,161.0,160.94,1.5553673]
[1724530531166,27.73155594,161.0,160.95,1.5553673]
[1724530531368,27.73155594,161.0,160.91,1.2424666]
[1724530531680,11.86395594,160.98,160.92,1.55536763]
[1724530531972,11.86395594,160.98,160.93,1.55536763]
[1724530532181,11.86395594,160.98,160.94,1.55536763]
[1724530532360,18.07625594,160.98,160.95,1.55536763]
[1724530532561,18.07625594,160.98,160.9,6.02240961]
[1724530532755,18.07625594,160.98,160.91,1.55539479]
[1724530532952,18.07625594,160.98,160.92,1.55539479]
[1724530533169,18.07625594,160.98,160.93,1.55539479]
[1724530533371,18.07625594,160.98,160.94,1.55539479]
[1724530533581,18.07625594,160.98,160.95,1.55539479]
[1724530533766,18.07625594,160.98,160.88,17.88636555]
[1724530533980,6.2125,160.97,160.89,1.55539595]
[1724530534165,11.86395594,160.98,160.9,1.55539595]
[1724530534362,11.86395594,160.98,160.91,1.55539595]
[1724530534687,11.86395594,160.98,160.92,1.55539595]
[1724530534878,11.86395594,160.98,160.93,1.55539595]
[1724530535069,11.86395594,160.98,160.94,1.55539595]
[1724530535269,11.86395594,160.98,160.95,1.55539595]
[1724530535478,11.86395594,160.98,160.88,17.88636555]
[1724530535769,11.86395594,160.98,160.89,1.55539479]
[1724530535976,11.86395594,160.98,160.9,1.55539479]
[1724530536169,11.86395594,160.98,160.91,1.55539479]
[1724530536476,11.86395594,160.98,160.92,1.55539479]
[1724530536677,11.86395594,160.98,160.93,1.55539479]
[1724530536977,11.86395594,160.98,160.94,1.55539479]
[1724530537190,11.86395594,160.98,160.95,1.55539479]
[1724530537371,11.86395594,160.98,160.88,17.88636555]
[1724530537569,11.86395594,160.98,160.89,1.55539595]
[1724530537772,11.86395594,160.98,160.9,1.55539595]
[1724530537980,11.86395594,160.98,160.91,1.55539595]
[1724530538284,11.86395594,160.98,160.92,1.55539595]
[1724530538486,11.86395594,160.98,160.93,1.55539595]
[1724530538665,11.86395594,160.98,160.94,1.55539595]
[1724530538866,11.86395594,160.98,160.95,1.55539595]
[1724530539075,6.2118,160.99,160.9,11.86395594]
[1724530539260,6.2118,160.99,160.91,1.55538685]
[1724530539462,6.2118,160.99,160.92,1.55538685]
[1724530539660,6.2118,160.99,160.93,4.58090727]
[1724530539859,6.2118,160.99,160.94,1.55538685]
[1724530540084,6.2118,160.99,160.9,11.86395594]
[1724530540085,6.2118,160.99,160.95,1.55538685]
[1724530540285,6.2118,160.99,160.91,3.02551963]
[1724530540591,6.2118,160.99,160.92,4.58089546]
[1724530540792,6.2118,160.99,160.93,4.58089546]
[1724530540992,6.2118,160.99,160.94,1.55539529]
[1724530541191,6.2118,160.99,160.95,1.55539529]
[1724530541491,6.2118,160.99,160.9,4.26808138]
[1724530541693,6.2118,160.99,160.91,4.58095474]
[1724530541894,6.2118,160.99,160.92,5.82358394]
[1724530542102,6.2118,160.99,160.93,4.58095474]
[1724530542288,6.2118,160.99,160.94,1.55545572]
[1724530542483,6.2118,160.99,160.95,1.55545572]
[1724530542793,18.07595594,160.98,160.91,3.02566382]
[1724530542996,18.07595594,160.98,160.92,4.58114783]
[1724530543298,18.07595594,160.98,160.93,1.55548401]
[1724530543599,18.07595594,160.98,160.88,6.02240961]
[1724530543770,18.07595594,160.98,160.94,1.55548663]
[1724530543970,18.07595594,160.98,160.89,3.02572717]
[1724530544172,18.07595594,160.98,160.9,4.58120835]
[1724530544394,18.07595594,160.98,160.91,4.58120835]
[1724530544576,18.07595594,160.98,160.92,4.58120835]
[1724530544784,18.07595594,160.98,160.93,1.55548118]
[1724530544988,18.07595594,160.98,160.94,1.55548118]
[1724530545188,18.07595594,160.98,160.89,3.02570612]
[1724530545386,18.07595594,160.98,160.9,4.58118805]
[1724530545574,18.07595594,160.98,160.91,4.58118805]
[1724530545774,18.07595594,160.98,160.92,4.58118805]
[1724530546089,18.07595594,160.98,160.93,1.55548193]
[1724530546300,18.07595594,160.98,160.94,1.55548193]
[1724530546468,18.07595594,160.98,160.89,3.02568546]
[1724530546671,18.07595594,160.98,160.9,4.58115878]
[1724530546872,18.07595594,160.98,160.88,6.02240961]
[1724530547089,18.07595594,160.98,160.91,4.58116021]
[1724530547292,18.07595594,160.98,160.91,3.02568705]
[1724530547501,18.07595594,160.98,160.92,1.55547728]
[1724530547788,18.07595594,160.98,160.93,1.55547728]
[1724530547991,18.07595594,160.98,160.94,1.55547728]
[1724530548197,18.07595594,160.98,160.88,6.02240961]
[1724530548503,18.07595594,160.98,160.89,1.55548218]
[1724530548677,18.07595594,160.98,160.9,1.55548218]
[1724530548875,18.07595594,160.98,160.91,1.55548218]
[1724530549169,18.07595594,160.98,160.92,1.55548218]
[1724530549376,18.07595594,160.98,160.93,1.55548218]
[1724530549572,18.07595594,160.98,160.94,1.55548218]
[1724530549774,18.07595594,160.98,160.88,6.02240961]
[1724530549995,18.07595594,160.98,160.89,1.5554821]
[1724530550196,18.07595594,160.98,160.9,1.55548193]
[1724530550401,18.07595594,160.98,160.91,1.55548193]
[1724530550701,18.07595594,160.98,160.92,1.55548193]
[1724530550900,18.07595594,160.98,160.93,1.55548193]
[1724530551203,18.07595594,160.98,160.94,1.55548193]
[1724530551388,18.07595594,160.98,160.88,6.02240961]
[1724530551589,18.07595594,160.98,160.89,1.5554821]
[1724530551776,18.07595594,160.98,160.9,1.5554821]
[1724530551977,18.07595594,160.98,160.91,1.5554821]
[1724530552173,18.07595594,160.98,160.92,1.5554821]
[1724530552377,18.07595594,160.98,160.93,1.5554821]
[1724530552607,18.07595594,160.98,160.94,1.5554821]
[1724530552905,18.07595594,160.98,160.88,6.02240961]
[1724530553203,18.07595594,160.98,160.89,1.55548211]
[1724530553592,18.07595594,160.98,160.9,1.55548211]
[1724530553809,18.07595594,160.98,160.91,1.55548211]
[1724530553986,18.07595594,160.98,160.92,1.55548211]
[1724530554181,18.07595594,160.98,160.93,1.55548211]
[1724530554410,11.86395594,160.98,160.94,1.55548211]
[1724530554593,11.86395594,160.98,160.88,6.02240961]
[1724530554795,11.86395594,160.98,160.89,1.5554821]
[1724530554994,11.86395594,160.98,160.88,6.02240961]
[1724530554995,11.86395594,160.98,160.9,1.5554821]
[1724530555194,18.07585594,160.98,160.91,1.5554821]
[1724530555405,18.07585594,160.98,160.92,1.5554821]
[1724530555701,18.07585594,160.98,160.93,1.5554821]
[1724530555909,18.07585594,160.98,160.88,6.02240961]
[1724530556109,18.07585594,160.98,160.89,1.55561046]
[1724530556410,18.07585594,160.98,160.9,1.55561046]
[1724530556586,18.07585594,160.98,160.91,1.55561046]
[1724530556787,18.07585594,160.98,160.92,1.55561046]
[1724530557009,18.07585594,160.98,160.93,1.55561046]
[1724530557208,18.07585594,160.98,160.88,6.02240961]
[1724530557512,18.07585594,160.98,160.89,6.22098069]
[1724530557680,18.07585594,160.98,160.9,6.22098069]
[1724530557884,18.07585594,160.98,160.91,1.55561881]
[1724530558180,18.07585594,160.98,160.92,1.55561881]
[1724530558392,18.07585594,160.98,160.93,1.55561881]
[1724530558607,18.07585594,160.98,160.88,6.02240961]
[1724530558806,18.07585594,160.98,160.89,6.22100654]
[1724530559018,18.07585594,160.98,160.9,6.22100654]
[1724530559205,18.07585594,160.98,160.91,1.55562634]
[1724530559532,18.07585594,160.98,160.92,1.55562634]
[1724530559814,18.07585594,160.98,160.93,1.55562634]
[1724530560127,18.07585594,160.98,160.9,1.2426393]
[1724530560292,18.07585594,160.98,160.91,6.22099828]
[1724530560496,18.07585594,160.98,160.9,1.2426393]
[1724530560689,18.07585594,160.98,160.91,4.66536373]
[1724530560898,18.07585594,160.98,160.9,1.2426393]
[1724530561201,18.07585594,160.98,160.91,4.66537555]
[1724530561402,18.07585594,160.98,160.9,1.2426393]
[1724530561602,18.07585594,160.98,160.91,4.6653751]
[1724530561797,18.07585594,160.98,160.9,1.2426393]
[1724530562393,18.07585594,160.98,160.91,4.66538737]
[1724530562696,18.07585594,160.98,160.9,1.2426393]
[1724530562912,18.07585594,160.98,160.91,4.66538677]
[1724530563118,18.07585594,160.98,160.9,1.2426393]
[1724530563318,18.07585594,160.98,160.91,4.66538722]
[1724530563616,18.07585594,160.98,160.9,1.2426393]
[1724530563800,18.07585594,160.98,160.91,4.66538722]
[1724530564002,18.07585594,160.98,160.9,1.2426393]
[1724530566017,18.07585594,160.98,160.88,6.02240961]
[1724530566896,18.07585594,160.98,160.89,4.66538833]
[1724530567097,18.07585594,160.98,160.9,4.66538833]
[1724530567298,18.07585594,160.98,160.88,6.02240961]
[1724530570502,16.5569,160.97,160.88,6.02240961]
[1724530570929,22.7692,160.97,160.88,6.02240961]
[1724530571226,11.86395594,160.96,160.87,18.30427153]
[1724530571408,18.12445594,160.96,160.88,45.0]
[1724530572429,17.62445594,160.96,160.88,45.0]
[1724530573638,23.83715594,160.96,160.88,45.0]
[1724530573817,17.62445594,160.96,160.88,45.0]
[1724530578333,16.1048,160.89,160.75,18.66]
[1724530578534,16.1048,160.89,160.71,35.93029831]
[1724530578535,6.2166,160.86,160.73,63.08349685]
[1724530578839,11.86395594,160.83,160.73,11.86395594]
[1724530579207,11.86395594,160.83,160.71,22.9223]
[1724530579402,11.86395594,160.81,160.72,11.86395594]
[1724530579708,6.2178,160.83,160.71,22.9223]
[1724530579937,11.86395594,160.79,160.71,22.9223]
[1724530580231,11.86395594,160.77,160.7,0.8402428]
[1724530580405,6.3804,160.78,160.7,0.8402428]
[1724530582433,6.5439,160.82,160.74,11.86395594]
[1724530583930,22.3222,160.84,160.76,11.86395594]
[1724530584318,16.1048,160.84,160.76,11.86395594]
[1724530586739,16.1048,160.84,160.78,11.86395594]
[1724530586918,6.5439,160.86,160.78,11.86395594]
[1724530592734,11.86395594,160.85,160.74,15.0716]
[1724530592920,6.2173,160.84,160.74,11.86395594]
[1724530594120,6.2173,160.84,160.76,11.86395594]
[1724530594524,18.08095594,160.85,160.76,11.86395594]
[1724530595657,6.217,160.85,160.76,11.86395594]
[1724530601639,18.08095594,160.85,160.76,11.86395594]
[1724530604744,6.217,160.85,160.76,11.86395594]
[1724530605556,6.2174,160.84,160.76,11.86395594]
[1724530606356,15.0964,160.83,160.76,11.86395594]
[1724530606949,21.3142,160.83,160.76,11.86395594]
[1724530609150,15.0964,160.83,160.76,11.86395594]
[1724530621275,15.0964,160.83,160.76,13.42085468]
[1724530621461,15.0964,160.83,160.76,11.86395594]
[1724530621777,15.0964,160.83,160.77,1.24385198]
[1724530621953,15.0964,160.83,160.75,2.80072552]
[1724530622153,15.0964,160.83,160.76,1.55689874]
[1724530622351,15.0964,160.83,160.75,3.02551193]
[1724530622563,15.0964,160.83,160.77,1.55689119]
[1724530622762,15.0964,160.83,160.76,1.55689119]
[1724530623072,15.0964,160.83,160.75,3.02551193]
[1724530623260,15.0964,160.83,160.76,3.02551193]
[1724530623461,15.0964,160.83,160.75,3.02551193]
[1724530623676,15.0964,160.83,160.74,11.86395594]
[1724530623677,15.0964,160.83,160.76,3.02551193]
[1724530623869,15.0964,160.83,160.75,3.02551193]
[1724530624052,15.0964,160.83,160.76,3.02551193]
[1724530624378,15.0964,160.83,160.77,3.02551193]
[1724530624681,15.0964,160.83,160.74,11.86395594]